Cogmind - Beta 13 @@@ ROGUE MODE // 2024.07.14 @ 17:42:49 Player: Blaj Result: Destroyed by G4-26K(R) with Subdweller Laser Performance ------------- Evolutions (0) 0 Regions Visited (2) 400 Robots Destroyed (38) 190 Value Destroyed (895) 895 Prototype IDs (2) 40 Alien Tech Used (0) 0 Bonus (0) 0 TOTAL SCORE: 1525 Bonus ------- None Cogmind --------- Core Integrity 0/250 Matter 152/300 Energy 200/200 System Corruption 1% Temperature Cool (6) Movement Rolling (200) Ox8 Location -10/Subcaves Parts ------- > --- POWER (1) -------- Subdweller Power Source > --- PROPULSION (2) --- Wheel > --- UTILITY (2) ------ Huge Storage Unit Seismic Detector > --- WEAPON (2) ------- Grenade Launcher > --- INVENTORY (25) --- Light Ion Engine Wheel Wheel Disposable Heat Sink Large Storage Unit High-capacity Matter Pod (0) Core Shielding Core Shielding Makeshift Kinetic Plating Cobbler Unit EM Pulse Gun EM Pulse Gun Riot Gun Subdweller Laser Battle Rifle Barrage Gun Battle Cannon Battle Cannon Makeshift Axe Peak State ------------ > --- POWER ------------ Ion Engine > --- PROPULSION ------- Wheel Wheel > --- UTILITY ---------- Huge Storage Unit Makeshift Kinetic Plating > --- WEAPON ----------- Subdweller Laser Barrage Gun > --- INVENTORY -------- Light Ion Engine Subdweller Power Source Wheel Wheel Wheel Disposable Heat Sink Large Storage Unit High-capacity Matter Pod Seismic Detector Core Shielding Core Shielding Cobbler Unit EM Pulse Gun EM Pulse Gun Riot Gun Subdweller Beam Cannon Battle Rifle Subdweller Machine Gun Battle Cannon Battle Cannon Grenade Launcher Grenade Launcher Makeshift Axe [Rating: 16] Favorites ----------- Power Ion Engine Engine Ion Engine Propulsion Wheel Leg Aluminum Leg Wheel Wheel Utility Huge Storage Unit Device Seismic Detector Storage Huge Storage Unit Protection Core Shielding Weapon EM Pulse Gun Energy Gun EM Pulse Gun Energy Cannon Subdweller Beam Cannon Ballistic Gun Assault Rifle Ballistic Cannon Battle Cannon Launcher Grenade Launcher Build | -11 -10 -10 ------- Run | Yrd Mat Sub Slots Evolved . | . . . Power . | . . . Propulsion . | . . . Utility . | . . . Weapon . | . . . Parts Attached 59 | 3 16 40 Power 2 | . . 2 Engine 2 | . . 2 Core . | . . . Reactor . | . . . Propulsion 6 | 2 . 4 Treads . | . . . Leg . | . . . Wheel 6 | 2 . 4 Hover . | . . . Flight . | . . . Utility 26 | 1 9 16 Device 12 | 1 3 8 Storage 2 | . 2 . Processor . | . . . Hackware . | . . . Protection 12 | . 4 8 Artifact . | . . . Weapon 25 | . 7 18 Energy Gun 11 | . 6 5 Energy Cannon 4 | . . 4 Ballistic Gun 3 | . . 3 Ballistic Cannon 2 | . . 2 Launcher 5 | . 1 4 Special Weapon . | . . . Impact Weapon . | . . . Slashing Weapon . | . . . Piercing Weapon . | . . . Special Melee Weapon . | . . . Unidentified Prototypes . | . . . Parts Lost 10 | . 1 9 Power 2 | . . 2 Propulsion 4 | . . 4 Utility . | . . . Weapon 4 | . 1 3 Highest Loss Streak 2 | . 1 2 To Critical Strikes . | . . . Average Slot Usage (%) 99 | . 100 99 Engine 13 | . 14 13 Wheel 27 | . 28 27 Device 7 | . 8 7 Storage 14 | . 14 14 Protection 6 | . 5 6 Energy Gun 18 | . 21 15 Energy Cannon 3 | . . 5 Ballistic Gun 3 | . 6 1 Ballistic Cannon 1 | . . 3 Launcher 1 | . . 2 Naked Turns . | . . . Heaviest Build 104 | 15 90 104 Greatest Support 30 | 26 26 30 Greatest Overweight (x) 9 | . 3 9 Average Overweight (x) 2 | . 1 3 Largest Inventory Capacity 25 | 8 25 25 Average Capacity 21 | 8 18 25 Most Carried 24 | 8 15 24 Average Carried 14 | 4 10 19 Final Capacity 25 | 8 25 25 Final Carried 20 | 7 14 20 Class Distribution -------------------- 100% | Mutant Dominant Class ---------------- Mutant | -10/Materials Mutant | -10/Subcaves Resources | -11 -10 -10 ----------- Run | Yrd Mat Sub Matter Collected 1464 | 326 488 650 Remotely . | . . . Salvage Created 1138 | 181 480 477 Parts 70 | 13 32 25 Haulers Intercepted 2 | . 2 . Recyclers Shooed 2 | 2 . . Parts Field Recycled . | . . . Retrieved Matter . | . . . Parts Self-Destructed 9 | . . 9 Prevented . | . . . Kills | -11 -10 -10 ------- Run | Yrd Mat Sub Combat Hostiles Destroyed 23 | . 9 14 Guns 8 | . 4 4 Cannons 3 | . . 3 AOE 11 | . 5 6 Classes Destroyed 11 | 2 7 2 Worker 3 | . 3 . Builder 1 | . 1 . Tunneler 5 | 5 . . Hauler 2 | . 2 . Recycler 1 | 1 . . Operator 1 | . 1 . Watcher 2 | . 2 . Swarmer 5 | . 5 . Grunt 4 | . 4 . Sentry 1 | . . 1 Subdweller 13 | . . 13 Best Kill Streak 5 | 5 4 3 Combat Bots Only 3 | . 3 3 Max Kills in Single Turn 2 | 1 2 2 Gunslinging . | . . . Exploded 2 | . 2 2 Melee . | . . . Uniques/NPCs Destroyed . | . . . Combat | -11 -10 -10 -------- Run | Yrd Mat Sub Hostile Shots Fired 86 | . 25 61 Missed 25 | . 7 18 Damage Taken 1325 | . 267 1058 Core 256 | . 42 214 Absorbed by Shields . | . . . Redirected to Shielding 27 | . 7 20 Ignored by Resistances 58 | . . 58 Core Remaining (%) 100 | 100 . . Volleys Fired 109 | 16 43 50 Largest 2 | 2 2 2 Hottest 140 | 40 80 140 Shots Fired 204 | 32 84 88 Gun 150 | 32 82 36 Cannon 30 | . . 30 Launcher 24 | . 2 22 Special . | . . . Kinetic 85 | 32 28 25 Thermal 16 | . . 16 Explosive 24 | . 2 22 Electromagnetic 79 | . 54 25 Robot Hit Streak 18 | 6 7 18 Robot Miss Streak 4 | 3 4 1 Penetration Max . | . . . Secondary Targets . | . . . Shots Hit Robots 124 | 24 45 55 Core Hits 64 | 7 26 31 Critical Kills . | . . . Critical Parts Destroyed 1 | 1 . . Critical Strikes 3 | 1 . 2 Destroy 1 | 1 . . Corrupt 2 | . . 2 Melee Attacks . | . . . Impact . | . . . Slashing . | . . . Piercing . | . . . Sneak Attacks . | . . . Combat Hostiles . | . . . Follow-up Attacks . | . . . Damage Inflicted 3406 | 298 966 2142 Guns 1282 | 298 620 364 Cannons 458 | . . 458 Explosions 1666 | . 346 1320 Melee . | . . . Ramming . | . . . Kinetic 887 | 298 186 403 Thermal 511 | . 185 326 Explosive 1324 | . 161 1163 Electromagnetic 684 | . 434 250 Impact . | . . . Slashing . | . . . Piercing . | . . . Highest Corruption 1 | . 1 1 Average Corruption 1 | . 1 1 Corruption Purged . | . . . Corruption Blocked . | . . . Effects 10 | . 4 6 Message Errors 2 | . . 2 Matter Fused 4 | . 1 3 Heat Flow Errors 1 | . . 1 Energy Discharges 3 | . 3 . Overload Shots . | . . . Overflow Damage 56 | . 37 19 Projectiles . | . . . Explosions 56 | . 37 19 Melee . | . . . Knockbacks 3 | . . 3 Impact . | . . . Kinetic 3 | . . 3 Secondary . | . . . Self-Inflicted Damage 175 | . 52 123 Shots 7 | . 2 5 Rammed . | . . . Targets Rammed . | . . . Kicked . | . . . Crushed . | . . . Highest Temperature 198 | . 198 81 Average Temperature 43 | . 46 32 Received Heat Transfer 240 | . 114 126 Siege Activations . | . . . Robots Corrupted 1 | . . 1 Combat Hostiles 1 | . . 1 Parts Fried 4 | . 2 2 Impact Corruptions . | . . . Robots Melted . | . . . Combat Hostiles . | . . . Parts Melted 3 | . . 3 Heat Transferred 573 | . 200 373 Parts Sabotaged . | . . . Parts Stolen . | . . . Parts Stripped . | . . . Power Chain Reactions 6 | . 3 3 Alert | -11 -10 -10 ------- Run | Yrd Mat Sub Peak Influence 193 | 30 193 . Initial 19 | . 19 . Average 91 | 13 96 . Maximum Alert Level . | . . . Low Security (%) 100 | 100 100 . Level 1 . | . . . Level 2 . | . . . Level 3 . | . . . Level 4 . | . . . Level 5 . | . . . High Security . | . . . Max Security . | . . . Squads Dispatched 1 | . 1 . Investigation . | . . . Extermination . | . . . Reinforcement 1 | . 1 . Assault . | . . . Garrison . | . . . Intercept . | . . . Searches Triggered . | . . . Construction Impeded . | . . . Haulers Reinforced . | . . . Active Scanning Responses . | . . . Cargo Convoy Interrupts . | . . . Stealth | -11 -10 -10 --------- Run | Yrd Mat Sub Distress Signals . | . . . Communications Jammed . | . . . Distress Signals . | . . . Times Spotted 32 | . 15 17 Peak Tracking Total 4 | . 4 3 Tactical Retreats 3 | . 1 2 Traps | -11 -10 -10 ------- Run | Yrd Mat Sub Traps Triggered 2 | . 1 1 Indirectly . | . . . Trap Hack Attempts . | . . . Triggered . | . . . Disarmed . | . . . Reprogrammed . | . . . Reused . | . . . Traps Extracted . | . . . Installed . | . . . Triggered . | . . . Machines | -11 -10 -10 ---------- Run | Yrd Mat Sub Machines Disabled 3 | . 3 . Max in Single Turn 1 | . 1 . Machines Repaired . | . . . Machines Dismantled . | . . . Machines Sabotaged . | . . . Overloaded Fab Kills . | . . . Hacking | -11 -10 -10 --------- Run | Yrd Mat Sub Machines Accessed 9 | . 8 1 Terminals 7 | . 7 . Fabricators . | . . . Repair Stations . | . . . Recycling Units 1 | . 1 . Scanalyzers . | . . . Garrison Access . | . . . Total Hacks 28 | . 27 1 Successful 15 | . 14 1 Failed 13 | . 13 . Catastrophic 1 | . 1 . Database Lockouts . | . . . Manual 14 | . 14 . Terminals 24 | . 24 . Fabricators . | . . . Repair Stations . | . . . Recycling Units 3 | . 3 . Scanalyzers . | . . . Garrison Access . | . . . Terminal Hacks 11 | . 10 1 Record 1 | . . 1 Part Schematic 1 | . 1 . Prototype ID Bank 1 | . 1 . Branch Access Points 1 | . 1 . Dispatch Records 1 | . 1 . Patrol Status 1 | . 1 . Recall Reinforcements 1 | . 1 . Hauler Manifests 1 | . 1 . Zone Layout 3 | . 3 . Fabricator Hacks . | . . . Repair Station Hacks . | . . . Recycling Unit Hacks . | . . . Scanalyzer . | . . . Garrison Access Hacks . | . . . Unauthorized Hacks 4 | . 4 . Terminals 2 | . 2 . Botnet 1 | . 1 . Operators 1 | . 1 . Fabricators . | . . . Repair Stations . | . . . Recycling Units 2 | . 2 . Reject 1 | . 1 . Recyclers 1 | . 1 . Scanalyzers . | . . . Garrison Access . | . . . Data Cores Recovered . | . . . Used . | . . . Hacking Detections 7 | . 7 . Full Trace Events 2 | . 2 . Feedback Events . | . . . Feedback Blocked . | . . . Robot Schematics Acquired . | . . . Robots Built . | . . . Authchips . | . . . Time . | . . . Total Robot Build Rating . | . . . Part Schematics Acquired 1 | . 1 . Parts Built . | . . . Authchips . | . . . Time . | . . . Total Part Build Rating . | . . . Parts Repaired . | . . . Time . | . . . Parts Recycled . | . . . Recycled Matter . | . . . Retrieved Matter . | . . . Retrieved Components . | . . . Parts Scanalyzed . | . . . Part Schematics Acquired . | . . . Parts Damaged . | . . . Bothacking | -11 -10 -10 ------------ Run | Yrd Mat Sub Used RIF Installer . | . . . Robots Hacked . | . . . Non-combat . | . . . Combat . | . . . Robot Hacks Applied . | . . . Relay Couplers Released . | . . . Fabnet Peak Effective % . | . . . Robots Rewired . | . . . Allies Hacked . | . . . Hacks Repelled . | . . . Allies | -11 -10 -10 -------- Run | Yrd Mat Sub Total Allies . | . . . Largest Group . | . . . Highest-Rated Group . | . . . Highest-Rated Ally . | . . . Total Orders . | . . . Ally Attacks . | . . . Total Damage . | . . . Kills . | . . . Allies Corrupted . | . . . Allies Melted . | . . . Intel | -11 -10 -10 ------- Run | Yrd Mat Sub Robot Analysis Total . | . . . Derelict Logs Recovered 1 | . . 1 Drone Launches . | . . . Drone Recoveries . | . . . Exploration | -11 -10 -10 ------------- Run | Yrd Mat Sub Turns Passed 2955 | 87 1384 1484 Spaces Moved 1679 | 30 834 815 Core . | . . . Treads . | . . . Legs 2 | 2 . . Wheels 1677 | 28 834 815 Hover . | . . . Flight . | . . . Fastest Speed 90 | 90 90 131 Average Speed 124 | 92 110 139 Slowest Speed 215 | 120 135 215 Overloaded Moves . | . . . Propulsion Burnouts . | . . . Robots Hopped . | . . . Cave-ins Triggered . | . . . Exploration Rate (%) 50 | 3 98 50 Regions Visited 2 Branch Regions 1 Pre-discovered Areas . | . . . Known Exits Taken . | . . . Unknown Exits Taken 2 | 1 1 . Scrap Searched 5 | . . 5 Spaces Dug 27 | . . 27 Terrain Destroyed 141 | . 20 121 Melee . | . . . Projectile 2 | . . 2 AOE 139 | . 20 119 Terrain Rammed . | . . . Walls Destroyed . | . . . Machines Disabled . | . . . Actions | -11 -10 -10 --------- Run | Yrd Mat Sub Total 2327 | 59 1209 1059 Wait 428 | . 293 135 Move 1677 | 29 833 815 Hop . | . . . Pick Up 31 | 5 13 13 Fast Attach 5 | 1 2 2 Attach 11 | 2 1 8 Detach 5 | 2 . 3 Swap 43 | . 13 30 Drop 18 | 4 11 3 Fire 109 | 16 43 50 Melee . | . . . Ram . | . . . Kick . | . . . Crush . | . . . Escape Stasis . | . . . Rewire . | . . . Trap . | . . . Miscellaneous . | . . . Route ------- -11/Scrapyard -10/Materials (discovered 5 exits: [*Mat x3] / *Min / *Sub) -10/Subcaves (discovered 1 exit: [*Mat]) History --------- Turn | Location | Event 1 | -11/Scrapyard | Discovered new exit (range 2) 88 | -11/Scrapyard | Entered Materials 96 | -10/Materials | Identified exit to Mines 309 | -10/Materials | Build established: Mutant 338 | -10/Materials | Discovered new exit (range 12) 651 | -10/Materials | Discovered new exit (range 7) 732 | -10/Materials | Discovered new exit (range 16) 1452 | -10/Materials | Discovered new exit (range 7) 1472 | -10/Materials | Entered Subcaves 1741 | -10/Subcaves | Shifting Twisted Machinery released Barrage Gun 1796 | -10/Subcaves | Shifting Twisted Machinery released Sub. Power Source 1798 | -10/Subcaves | Shifting Twisted Machinery released Battle Cannon 1936 | -10/Subcaves | Core integrity fell below 50% 2066 | -10/Subcaves | Shifting Twisted Machinery released Mak. Kinetic Plating 2155 | -10/Subcaves | Visited Clippyterm 2497 | -10/Subcaves | A swath of the cavern ceiling suddenly collapsed 2582 | -10/Subcaves | Learned location of 1 exit from Materials 2596 | -10/Subcaves | Discovered new exit (range 8) 2773 | -10/Subcaves | Core integrity fell below 20% 2956 | -10/Subcaves | Destroyed by G4-26K(R) with Subdweller Laser Last Messages --------------- 02805_ 9Z-AXJ(R) destroyed. 02805_ Sub. Monowheel destroyed. 02806_ The unstable cave ceiling collapses. 02806_ Sub. Power Source crushed. 02809_ KA-6UX(R) affixes Scrap Shield Fragment to Scrap Shield. 02810_ The unstable cave ceiling collapses. 02811_ KA-6UX(R) destroyed. 02823_ Acquired 7 matter. 02837_ The unstable cave ceiling collapses. 02848_ Acquired 2 matter. 02936_ 3L-17W(R) destroyed. 02940_ Dropped Hcp. Matter Pod. 02941_ Extracted 200 matter. 02941_ Acquired Hcp. Matter Pod. 02953_ The unstable cave ceiling collapses. 02954_ Wheel destroyed. 02955_ Grenade Launcher destroyed. 02955_ Destroyed Grenade Launcher. 02956_ 0I-POZ(R): "FREEEEDUMB!" Map ----- +----------------------------------------------------+ | ?????????????????????????????????????????????????? | | ?????????????????????????????????????????????????? | | ?????????????????????????????????????????????????? | | ?????????????????????????????????????????????????? | | ?????????????????????????????????????????????????? | | ?????????????????????????????????????????????????? | | ?????????????????????????????????????????????????? | | ?????????????????????????????????????????????????? | | ?????????????????????????????????????????????????? | | ?????????????????????????????????????????????????? | | ?????????????????????????????????????????????????? | | ?????????????????????????????????????????????????? | | ?????????????????????????????????????????????????? | | ????????????????????????????????#????????????????? | | ????????????????????????????###? ##??????????????? | | ??????????????###???????????# # ??????????????? | | ?????????????# ??????????? ??????????????? | | ?????????????# ?????????? ??????????????? | | ????????????## ###??????? ?? ???????????? | | ???????????? ??????? ????????????? | | ???????????? ##?????# ??????????????? | | ??????????? ####### #???????????????? | | ??????????? ## #???????????????? | | ??????????? ##??????????????? | | ?????????????????# #?????"????????? | | ?????????????????# @ "R # " ???????? | | ????????????????## ""#???????? | | ?????????#??????# R "#????????? | | ?????????# ????## #????????? | | ?????????# ???# ##?####???? | | ??????????# #?## "#?# #???? | | ????? ???## ## ### ""### ####? | | ???? ## ## " ## | | ???? ## " # | | ???? ### # | | ???????? ## ####?### ## # | | ????????### # #???????## ### # | | ????????# # # #????????# ### ### ##??# # | | ????? ## < ##???????###?###?####????## | | ????? ???## ##???????????????????????? | | ??????? ?????## & #???????????????????????? | | ????????????#### "& * #???????????????????????? | | ????????????# & & #???????????????????????? | | ????????????# # ! #???????????????????????? | | ????????????## #???????????????????????? | | ?????????????#### # # #???????????????????????? | | ????????????????# #???????????????????????? | | ???????????????## ##??????????????????????? | | ???????????????# ## ##?????????????????????? | | ????????##? # &[ #?????????????????????? | +----------------------------------------------------+ Best States ------------- Heat Dissipation 25 Energy Generation 15 Energy Capacity 250 Matter Stores 300 Matter Capacity 300 Sight Range 16 Terrain Scan Density 10 Armor Coverage 100 Resistance: KI 10 Core Shielding 20 Evasion (%) 42 Item Schematics ----------------- Huge Storage Unit | -10/Materials | Hacked Robot Schematics ------------------ None Fabricated ------------ Nothing Alien Tech Used ----------------- None Achievements -------------- None Challenges ------------ None Game ------ Seed NeutrinoXenonCarapace Manual? 0 Play Time 00:32:18 Cumulative 143.7 hours Start 2024.07.14 @ 16:54:32 End 2024.07.14 @ 17:42:49 Sessions 1 Manual Loads 0 Difficulty Rogue Special Mode None Game No. 40 Rogue 40 Adventurer 0 Explorer 0 Win Type - Total 5 Types 4/0/1/0/0/0/0/0/0 Lore% 61 Gallery% 72 Achievement% 64 Wizard Run 0 Options --------- Layout 2 ASCII 0 Keyboard 1 Movement Vi Keybinds 0 Fullscreen 1 Font 24/Smallcaps Map View 50x44 Zoom Use 0% Tactical HUD 1 Map Filters NONE Filters NONE Steam 1 RUN: 66207958-8d73-49a8-8e7e-1a49227e2c9f